bitfinex/quotes_BTCUSD_20251226
["timestamp","ask_amount","ask_price","bid_price","bid_amount"]
[1766737098576,0.07477,88666.0,88652.0,0.02260006]
[1766737098777,0.07477,88666.0,88652.0,0.01132]
[1766737098978,0.0112784,88665.0,88652.0,0.01132]
[1766737099215,0.07058,88664.0,88652.0,0.01132]
[1766737101769,0.08185853,88664.0,88652.0,0.01132]
[1766737101971,0.06767625,88658.0,88652.0,0.010988]
[1766737102177,0.07058,88655.0,88652.0,0.010988]
[1766737102788,0.07058,88655.0,88648.0,0.00035907]
[1766737102985,0.07058,88655.0,88644.0,0.01132]
[1766737103171,0.07039046,88655.0,88644.0,0.01132]
[1766737103621,0.07039046,88655.0,88644.0,0.06772506]
[1766737103860,0.00035946,88655.0,88645.0,0.4034086]
[1766737104083,0.01132,88661.0,88648.0,0.01128057]
[1766737104288,0.01132,88661.0,88650.0,0.4034086]
[1766737104622,0.07058,88663.0,88650.0,0.4034086]
[1766737104819,0.08185866,88663.0,88648.0,0.00010781]
[1766737105052,0.01127878,88662.0,88648.0,0.00010781]
[1766737105206,0.07058,88661.0,88648.0,0.00010781]
[1766737106009,0.07058,88661.0,88650.0,0.40338852]
[1766737107098,0.01127904,88660.0,88650.0,0.40338852]
[1766737107325,0.08185917,88659.0,88650.0,0.40338852]
[1766737107567,0.000549,88650.0,88638.0,0.01128184]
[1766737107825,0.01127929,88658.0,88641.0,0.01187946]
[1766737107826,0.07058,88649.0,88641.0,0.01187946]
[1766737108265,0.01132,88658.0,88641.0,0.01187946]
[1766737108266,0.01132,88658.0,88645.0,0.01128095]
[1766737108492,0.01132,88657.0,88648.0,0.40338852]
[1766737108722,0.0819,88657.0,88648.0,0.40338852]
[1766737108958,0.0819,88657.0,88649.0,0.01128044]
[1766737109252,0.0819,88657.0,88648.0,0.40338852]
[1766737111058,0.07058,88657.0,88648.0,0.40338852]
[1766737114188,0.07058,88657.0,88641.0,0.01187946]
[1766737114189,0.000549,88648.0,88641.0,0.01187946]
[1766737114401,0.072229,88648.0,88641.0,0.01187946]
[1766737114605,0.07168,88648.0,88641.0,0.01187946]
[1766737114824,0.05968378,88648.0,88641.0,0.01187946]
[1766737116432,0.05968378,88648.0,88642.0,0.01132]
[1766737117621,0.08296082,88646.0,88641.0,0.01132]
[1766737117814,0.07168,88646.0,88641.0,0.01132]
[1766737122086,0.01128031,88650.0,88635.0,0.01132]
[1766737122263,0.06804166,88650.0,88635.0,0.01132]
[1766737122468,0.01128057,88648.0,88635.0,0.01132]
[1766737122667,0.01128044,88649.0,88635.0,0.01132]
[1766737123082,0.01163961,88650.0,88635.0,0.01132]
[1766737123484,0.01132,88654.0,88635.0,0.01132]
[1766737123682,0.01132,88654.0,88640.0,0.40338852]
[1766737123850,0.01132,88654.0,88644.0,0.01128107]
[1766737124467,0.01132,88654.0,88645.0,0.01128095]
[1766737124672,0.01132,88654.0,88646.0,0.01128082]
[1766737124898,0.01132,88654.0,88644.0,0.01128107]
[1766737125104,0.01132,88654.0,88645.0,0.01128095]
[1766737125269,0.01132,88654.0,88644.0,0.01128107]
[1766737125452,0.01132,88654.0,88645.0,0.01128095]
[1766737125881,0.010771,88654.0,88646.0,0.01128082]
[1766737126076,0.010771,88654.0,88647.0,0.01128069]
[1766737126320,0.0002,88664.0,88647.0,0.01128069]
[1766737126494,0.01127891,88661.0,88645.0,0.01128095]
[1766737126714,0.01127878,88662.0,88645.0,0.01128095]
[1766737126926,0.01127878,88662.0,88644.0,0.0002]
[1766737127092,0.01127929,88658.0,88644.0,0.0002]
[1766737127459,0.01127917,88659.0,88644.0,0.0002]
[1766737127814,0.01127917,88659.0,88644.0,0.01148107]
[1766737128131,0.06767349,88661.0,88645.0,0.01128095]
[1766737128349,0.02259866,88663.0,88646.0,0.01128082]
[1766737128508,0.01127891,88661.0,88645.0,0.01128095]
[1766737129484,0.01127917,88659.0,88644.0,0.0002]
[1766737129853,0.01127891,88661.0,88644.0,0.05660539]
[1766737130000,0.01127891,88661.0,88646.0,0.01128082]
[1766737130353,0.01127891,88661.0,88644.0,0.05660539]
[1766737130354,0.01127891,88661.0,88645.0,0.01128095]
[1766737130575,0.01127904,88660.0,88644.0,0.0002]
[1766737130826,0.01127942,88657.0,88644.0,0.0002]
[1766737131025,0.01128006,88652.0,88636.0,0.01128209]
[1766737131496,0.01128018,88651.0,88635.0,0.02296152]
[1766737132787,0.01128006,88652.0,88636.0,0.01128209]
[1766737133018,0.01128018,88651.0,88635.0,0.02296152]
[1766737133988,0.01128044,88649.0,88635.0,0.0116793]
[1766737135782,0.01128031,88650.0,88635.0,0.0116793]
[1766737135983,0.01128018,88651.0,88635.0,0.0116793]
[1766737136210,0.01128018,88651.0,88635.0,0.02296152]
[1766737136411,0.06768095,88652.0,88636.0,0.01128209]
[1766737136612,0.06768095,88652.0,88635.0,0.02296152]
[1766737136831,0.01128006,88652.0,88636.0,0.01128209]
[1766737137824,0.01128006,88652.0,88637.0,0.01128197]
[1766737138170,0.01128044,88649.0,88635.0,0.0116793]
[1766737139072,0.01128031,88650.0,88635.0,0.02296152]
[1766737139236,0.01128006,88652.0,88636.0,0.01128209]
[1766737139436,0.01128018,88651.0,88635.0,0.02296152]
[1766737139824,0.01128018,88651.0,88636.0,0.01128209]
[1766737140390,0.01128044,88649.0,88635.0,0.0116793]
[1766737140528,0.01128031,88650.0,88635.0,0.0116793]
[1766737140749,0.01128044,88649.0,88635.0,0.0116793]
[1766737141465,0.01128006,88652.0,88636.0,0.01128209]
[1766737141670,0.01128018,88651.0,88635.0,0.02296152]
[1766737141875,0.01128018,88651.0,88636.0,0.01128209]
[1766737142067,0.01128006,88652.0,88636.0,0.01128209]
[1766737142273,0.01127993,88653.0,88637.0,0.01128197]
[1766737142517,0.0112798,88654.0,88638.0,0.01128184]
[1766737143217,0.01132,88656.0,88644.0,0.01128107]
[1766737143369,0.01132,88656.0,88645.0,0.01128095]
[1766737143576,0.01132,88656.0,88646.0,0.01128082]
[1766737144421,0.01132,88656.0,88645.0,0.01128095]
[1766737144562,0.01132,88656.0,88643.0,0.0112812]
[1766737144763,0.01132,88656.0,88646.0,0.01128082]
[1766737146153,0.01147853,88664.0,88648.0,0.01128057]
[1766737146362,0.01132,88659.0,88645.0,0.01128095]
[1766737146562,0.01132,88659.0,88642.0,0.01132]
[1766737146769,0.01132,88659.0,88643.0,0.0112812]
[1766737147006,0.01132,88659.0,88645.0,0.01128095]
[1766737147152,0.01132,88659.0,88647.0,0.01128069]
[1766737147521,0.01132,88659.0,88644.0,0.01128107]
[1766737147793,0.01127929,88658.0,88642.0,0.01132]
[1766737147993,0.01127967,88655.0,88642.0,0.01132]
[1766737148254,0.01127955,88656.0,88642.0,0.01132]
[1766737148426,0.01127942,88657.0,88642.0,0.01132]
[1766737148801,0.01127942,88657.0,88642.0,0.02260133]
[1766737149010,0.01132,88659.0,88643.0,0.0112812]
[1766737149323,0.01132,88659.0,88645.0,0.01128095]
[1766737149613,0.01132,88659.0,88644.0,0.01128107]
[1766737150021,0.01132,88659.0,88645.0,0.01128095]
[1766737150252,0.01132,88659.0,88650.0,0.01128031]
[1766737150428,0.01132,88659.0,88642.0,0.01132]
[1766737150634,0.01132,88659.0,88645.0,0.01128095]
[1766737151082,0.01132,88659.0,88647.0,0.01128069]
[1766737151237,0.01132,88659.0,88648.0,0.01128057]
[1766737151429,0.01132,88659.0,88647.0,0.01128069]
[1766737151629,0.01132,88659.0,88650.0,0.01128031]
[1766737151831,0.0002,88664.0,88649.0,0.01128044]
[1766737151832,0.01132,88664.0,88649.0,0.01128044]
[1766737152072,0.01343308,88664.0,88649.0,0.01148044]
[1766737152445,0.00215455,88664.0,88650.0,0.01128031]
[1766737152761,0.01343308,88664.0,88649.0,0.0002]
[1766737152963,0.01127866,88663.0,88649.0,0.0002]
[1766737153310,0.01132,88664.0,88649.0,0.0002]
[1766737153517,0.01132,88664.0,88649.0,0.01148044]
[1766737153634,0.01132,88664.0,88650.0,0.01128031]
[1766737153843,0.01132,88664.0,88650.0,0.41480821]
[1766737154177,0.01132,88664.0,88650.0,0.4035279]
[1766737154351,0.01132,88664.0,88649.0,0.01148044]
[1766737154566,0.01132,88664.0,88650.0,0.01128031]
[1766737154967,0.02259853,88664.0,88649.0,0.0002]
[1766737155162,0.01132,88664.0,88650.0,0.01128031]
[1766737155408,0.01132,88664.0,88649.0,0.01148044]
[1766737155786,0.000149,88649.0,88636.0,0.01128209]
[1766737156003,0.06798,88648.0,88641.0,0.01132]
[1766737158200,0.06798,88648.0,88641.0,0.011171]
[1766737158605,0.07926069,88647.0,88641.0,0.011171]
[1766737158870,0.06798,88647.0,88641.0,1e-06]
[1766737159476,0.07926069,88647.0,88641.0,1e-06]
[1766737159845,0.07926184,88638.0,88635.0,0.0003593]
[1766737160054,0.06798,88636.0,88624.0,0.01132]
[1766737160226,0.06798,88636.0,88624.0,0.01141305]
[1766737160549,0.06798,88632.0,88624.0,0.01141305]
[1766737161213,0.01128273,88631.0,88624.0,0.01141305]
[1766737161419,0.06798,88630.0,88624.0,0.01141305]
[1766737161784,0.06798,88626.0,88624.0,3.05e-06]
[1766737162718,0.01132,88630.0,88624.0,3.05e-06]
[1766737162941,0.00068152,88630.0,88624.0,3.05e-06]
[1766737163143,0.07926184,88638.0,88624.0,3.05e-06]
[1766737163345,0.01132,88638.0,88626.0,0.01128337]
[1766737163567,0.01132,88638.0,88624.0,3.05e-06]
[1766737164241,0.01132,88638.0,88626.0,0.01128337]
[1766737164387,0.01132,88638.0,88624.0,0.01128667]
[1766737164388,0.01128133,88642.0,88625.0,0.01128349]
[1766737164588,0.02260146,88641.0,88625.0,0.06770055]
[1766737164752,0.02260146,88641.0,88626.0,0.01128337]
[1766737164953,0.06798,88644.0,88632.0,0.0112826]
[1766737165243,0.01128057,88648.0,88632.0,0.0112826]
[1766737165244,0.06798,88651.0,88635.0,0.01128222]
[1766737165445,0.0793,88651.0,88638.0,0.01128184]
[1766737165576,0.06798,88660.0,88648.0,0.01128057]
[1766737165772,0.01132,88659.0,88644.0,0.01128107]
[1766737165980,0.01127929,88658.0,88643.0,0.0112812]
[1766737166178,0.01127929,88658.0,88642.0,0.01128133]
[1766737166566,0.07925929,88658.0,88641.0,0.01128146]
[1766737166765,0.06798,88656.0,88641.0,0.01128146]
[1766737167023,0.0112798,88654.0,88640.0,0.4035279]
[1766737167405,0.01127993,88653.0,88638.0,0.01132]
[1766737167590,0.07925993,88653.0,88638.0,0.01132]
[1766737168015,0.07926044,88649.0,88638.0,0.01132]
[1766737168216,0.07926082,88646.0,88629.0,0.01128222]
[1766737168415,0.07926082,88646.0,88627.0,0.06769905]
[1766737168416,0.06798,88643.0,88635.0,0.01132]
[1766737168619,0.06798,88643.0,88632.0,0.01132]
[1766737170015,0.06798,88643.0,88632.0,0.0226026]
[1766737170215,0.06798,88643.0,88632.0,0.01132]
[1766737170411,0.06798,88643.0,88632.0,0.0226026]
[1766737170654,0.06798,88643.0,88632.0,0.01132]
[1766737171223,0.06798,88643.0,88632.0,0.0226026]
[1766737172732,0.06798,88643.0,88632.0,0.01132]
[1766737173956,0.07926146,88641.0,88632.0,0.01132]
[1766737174160,0.06798,88639.0,88632.0,0.01077]
[1766737174682,0.06798,88639.0,88627.0,0.01132]
[1766737175044,0.06798,88639.0,88629.0,0.01128298]
[1766737175383,0.06798,88639.0,88630.0,0.01128286]
[1766737176185,0.06798,88639.0,88631.0,0.01128273]
[1766737176387,0.06798,88639.0,88632.0,0.0112826]
[1766737177330,0.05691948,88639.0,88631.0,0.01128273]
[1766737177531,0.05365978,88639.0,88630.0,0.01128286]
[1766737177712,0.05365978,88639.0,88629.0,0.01128298]
[1766737177895,0.05311078,88639.0,88631.0,0.01128273]
[1766737178096,0.05311078,88639.0,88632.0,0.0112826]
[1766737178299,0.05311078,88639.0,88631.0,0.01128273]
[1766737179015,0.05056834,88639.0,88633.0,0.01128247]
[1766737179221,0.05056834,88639.0,88632.0,0.0112826]
[1766737179682,0.06798,88649.0,88636.0,0.01128209]
[1766737179799,0.06798,88649.0,88637.0,0.01128197]
[1766737180004,0.06798,88649.0,88638.0,0.01128184]
[1766737180660,0.06798,88649.0,88636.0,0.01128209]
[1766737180836,0.06798,88649.0,88635.0,0.01128222]
[1766737181248,0.06798,88647.0,88636.0,0.01128209]
[1766737181719,0.06798,88647.0,88638.0,0.01128184]
[1766737181901,0.06798,88647.0,88636.0,0.01128209]
[1766737182037,0.06798,88647.0,88638.0,0.01128184]
[1766737182239,0.01132,88646.0,88638.0,0.01128184]
[1766737182695,0.0793,88646.0,88637.0,0.01128197]
[1766737182891,0.0793,88646.0,88638.0,0.01128184]
[1766737183091,0.06798,88653.0,88638.0,0.01128184]
[1766737183293,0.0793,88652.0,88639.0,0.01128171]
[1766737183783,0.01132,88651.0,88642.0,0.01128133]
[1766737184026,0.01132,88651.0,88643.0,0.0112812]
[1766737184183,0.01132,88651.0,88640.0,0.4035279]
[1766737184859,0.01132,88651.0,88639.0,0.01128171]
[1766737185039,0.01132,88651.0,88638.0,0.01128184]
[1766737185248,0.01132,88651.0,88637.0,0.01128197]
[1766737185446,0.01132,88651.0,88642.0,0.00019168]
[1766737185605,0.02260018,88651.0,88642.0,0.00019168]
[1766737185938,0.01132,88651.0,88642.0,0.00019168]
[1766737187326,0.01132,88651.0,88644.0,0.01128107]
[1766737187508,0.01132,88651.0,88642.0,0.00019168]
[1766737189663,0.02260018,88651.0,88642.0,0.00019168]
[1766737189861,0.01128044,88649.0,88642.0,0.00019168]
[1766737190092,0.01128044,88649.0,88635.0,0.01132]
[1766737190716,0.01128031,88650.0,88635.0,0.02260222]
[1766737190911,0.02260018,88651.0,88636.0,0.01128209]
[1766737191198,0.01132,88651.0,88638.0,0.01128184]
[1766737191699,0.01132,88651.0,88639.0,0.01128171]
[1766737191901,0.01132,88651.0,88638.0,0.01128184]
[1766737192102,0.01132,88651.0,88637.0,0.01128197]
[1766737192756,0.01132,88651.0,88637.0,0.06769151]
[1766737193342,0.01132,88651.0,88638.0,0.01128184]
[1766737193558,0.01132,88651.0,88636.0,0.01128209]
[1766737193846,0.01132,88651.0,88638.0,0.01128184]
[1766737194829,0.01132,88651.0,88637.0,0.01128197]
[1766737195050,0.01132,88651.0,88638.0,0.01128184]
[1766737195368,0.01132,88651.0,88639.0,0.01128171]
[1766737195567,0.01132,88651.0,88638.0,0.01128184]
[1766737195769,0.01132,88651.0,88637.0,0.06769143]
[1766737195770,0.01132,88651.0,88637.0,0.01128197]
[1766737196003,0.01132,88651.0,88638.0,0.01128184]
[1766737196203,0.01132,88652.0,88651.0,0.000191]
[1766737196477,0.01132,88652.0,88641.0,0.01128146]
[1766737196618,0.01132,88652.0,88643.0,0.0112812]
[1766737196823,0.08298,88652.0,88642.0,0.01128133]
[1766737197119,0.08298,88652.0,88640.0,0.41480948]
[1766737197319,0.08333936,88652.0,88640.0,0.41480948]
[1766737197579,0.08333936,88652.0,88640.0,0.4035279]
[1766737197757,0.08333936,88652.0,88640.0,0.01128158]
[1766737198480,0.08333936,88652.0,88641.0,0.01128146]
[1766737199178,0.08333936,88652.0,88640.0,0.01128158]
[1766737199477,0.08333936,88652.0,88641.0,0.01128146]
[1766737200248,0.08333936,88652.0,88639.0,0.01128171]
[1766737200456,0.07166,88651.0,88635.0,0.01132]
[1766737200662,0.07166,88646.0,88635.0,0.01132]
[1766737203218,0.01128057,88648.0,88635.0,0.01132]
[1766737203219,0.01128095,88645.0,88635.0,0.01132]
[1766737203412,0.07166,88642.0,88631.0,0.03386919]
[1766737203618,0.07166,88642.0,88631.0,0.02254919]
[1766737203816,0.08294133,88642.0,88630.0,0.01132]
[1766737204031,0.07166,88640.0,88630.0,0.01132]
[1766737204228,0.07166,88638.0,88623.0,0.03385887]
[1766737204426,0.07166,88638.0,88626.0,0.01132]
[1766737205662,0.08294184,88638.0,88626.0,0.01132]
[1766737205877,0.07166,88638.0,88626.0,0.01132]
[1766737206070,0.07166,88638.0,88628.0,0.01128311]
[1766737206271,0.07166,88638.0,88628.0,0.40353948]
[1766737206939,0.07166,88638.0,88627.0,0.01128324]
[1766737207903,0.07166,88638.0,88628.0,0.01128311]
[1766737208452,0.07166,88638.0,88627.0,0.01128324]
[1766737209003,0.07166,88638.0,88628.0,0.40353948]
[1766737209419,0.07166,88638.0,88629.0,0.01128298]
[1766737209595,0.07166,88638.0,88628.0,0.40353948]
[1766737209791,0.07166,88638.0,88628.0,0.41482259]
[1766737210102,0.07166,88638.0,88627.0,0.01128324]
[1766737210293,0.07166,88638.0,88628.0,0.40353948]
[1766737211123,0.01128209,88636.0,88626.0,0.01132]
[1766737211283,0.07166,88636.0,88626.0,0.01132]
[1766737212117,0.07166,88636.0,88626.0,0.02260337]
[1766737212426,0.07166,88636.0,88626.0,0.01132]
[1766737214112,0.07166,88636.0,88626.0,0.02260337]
[1766737215068,0.071469,88636.0,88628.0,0.01128311]
[1766737215497,0.071469,88636.0,88627.0,0.01128324]
[1766737215692,0.071469,88636.0,88629.0,0.01128298]
[1766737216111,0.071469,88636.0,88628.0,0.01128311]
[1766737216615,0.071469,88636.0,88626.0,0.07901989]
[1766737216776,0.071469,88636.0,88627.0,0.01128324]
[1766737217172,0.071469,88636.0,88626.0,0.01132]
[1766737217381,0.071469,88636.0,88626.0,0.02260337]
[1766737217711,0.071469,88636.0,88627.0,0.01128324]
[1766737218351,0.071469,88636.0,88628.0,0.01128311]
[1766737218553,0.071469,88636.0,88630.0,0.01128286]
[1766737219058,0.071469,88636.0,88629.0,0.01128298]
[1766737220110,0.071469,88636.0,88630.0,0.01128286]
[1766737220946,0.071469,88636.0,88629.0,0.01128298]
[1766737221161,0.071469,88636.0,88630.0,0.01128286]
[1766737221368,0.071469,88636.0,88629.0,0.01128298]
[1766737221623,0.071469,88636.0,88626.0,0.02260337]
[1766737221846,0.071469,88636.0,88626.0,0.01132]
[1766737222279,0.06883,88633.0,88626.0,0.01132]
[1766737222513,0.06883,88633.0,88626.0,0.010771]
[1766737222768,0.08011247,88633.0,88626.0,0.010771]
[1766737222977,0.06883,88628.0,88616.0,0.0002]
[1766737223196,0.06883,88624.0,88616.0,0.0002]
[1766737224260,0.06883,88624.0,88617.0,0.01128451]
[1766737224440,0.06889485,88624.0,88616.0,0.01148464]
[1766737225003,0.06834585,88624.0,88617.0,0.01128451]
[1766737225417,0.06834585,88624.0,88616.0,0.01148464]
[1766737226158,0.06834585,88624.0,88616.0,0.0002]
[1766737227976,6.485e-05,88624.0,88616.0,0.0002]
[1766737229058,0.011284,88621.0,88615.0,0.0002]
[1766737229238,0.01128413,88620.0,88614.0,0.0002]
[1766737229569,0.011284,88621.0,88614.0,0.0002]
[1766737229718,0.011284,88621.0,88614.0,5.1e-05]
[1766737230129,0.01128387,88622.0,88614.0,5.1e-05]
[1766737230287,6.485e-05,88624.0,88614.0,5.1e-05]
[1766737230500,6.485e-05,88624.0,88611.0,0.01128528]
[1766737230950,0.01132,88627.0,88616.0,0.01128464]
[1766737231120,0.01132,88627.0,88618.0,0.01128438]
[1766737231480,0.01132,88627.0,88617.0,0.01128451]
[1766737232452,0.01132,88627.0,88616.0,0.01139254]
[1766737232453,0.01128362,88624.0,88616.0,0.0001079]
[1766737232885,0.01128426,88619.0,88616.0,0.0001079]
[1766737233284,0.01128413,88620.0,88616.0,0.0001079]
[1766737233507,0.05641803,88625.0,88616.0,0.0001079]
[1766737233711,0.01128349,88625.0,88616.0,0.0001079]
[1766737233893,0.06770233,88624.0,88616.0,0.0001079]
[1766737234090,0.01128375,88623.0,88616.0,0.0001079]
[1766737234295,0.01128337,88626.0,88616.0,0.0001079]
[1766737234498,0.01132,88627.0,88616.0,0.0001079]
[1766737234499,0.02260324,88627.0,88616.0,0.0001079]
[1766737234725,0.01132,88627.0,88616.0,0.0001079]
[1766737235616,0.02260324,88627.0,88616.0,0.0001079]
[1766737235992,0.01128337,88626.0,88616.0,0.0001079]
[1766737237094,0.02260324,88627.0,88616.0,0.0001079]
[1766737237273,0.01128337,88626.0,88616.0,0.0001079]
[1766737237799,0.02260324,88627.0,88616.0,0.0001079]
[1766737237977,0.01128337,88626.0,88616.0,0.0001079]
[1766737238177,0.01128349,88625.0,88616.0,0.0001079]
[1766737238589,0.01128337,88626.0,88616.0,0.0001079]
[1766737238829,0.01132,88627.0,88616.0,0.0001079]
[1766737238994,0.02260324,88627.0,88616.0,0.0001079]
[1766737239204,0.01128337,88626.0,88616.0,0.0001079]
[1766737239926,0.01128349,88625.0,88616.0,0.0001079]
[1766737240857,0.01128337,88626.0,88616.0,0.0001079]
[1766737241002,0.02260324,88627.0,88616.0,0.0001079]
[1766737241341,0.01132,88631.0,88627.0,0.000549]
[1766737241640,0.01128069,88647.0,88632.0,0.0112826]
[1766737241887,0.01132,88646.0,88632.0,0.0112826]
[1766737242258,0.01128107,88644.0,88630.0,0.40353948]
[1766737242720,0.01128107,88644.0,88626.0,0.06769978]
[1766737242925,0.0112812,88643.0,88629.0,0.01128298]
[1766737243120,0.01128133,88642.0,88628.0,0.01128311]
[1766737243692,0.01128107,88644.0,88630.0,0.01128286]
[1766737243820,0.02260082,88646.0,88630.0,0.01128286]
[1766737244029,0.01128095,88645.0,88631.0,0.01128273]
[1766737244445,0.01128095,88645.0,88630.0,0.40353948]
[1766737244650,0.05640539,88644.0,88630.0,0.40353948]
[1766737244850,0.01128095,88645.0,88630.0,0.01128286]
[1766737245057,0.01128095,88645.0,88631.0,0.01128273]
[1766737245306,0.01128082,88646.0,88632.0,0.0112826]
[1766737245523,0.01132,88647.0,88639.0,0.05640846]
[1766737245736,0.01127967,88655.0,88640.0,0.01128158]
[1766737245945,0.01127815,88667.0,88655.0,0.00055]
[1766737246264,0.01132,88666.0,88655.0,0.00055]
[1766737246428,0.02259828,88666.0,88651.0,0.01128018]
[1766737246658,0.0112784,88665.0,88651.0,0.01128018]
[1766737247287,0.00035977,88665.0,88651.0,0.01128018]
[1766737247494,0.00035977,88665.0,88653.0,0.01127993]
[1766737248549,0.00035977,88665.0,88650.0,0.40353948]
[1766737248748,0.01163817,88665.0,88651.0,0.01128018]
[1766737249222,0.01127866,88663.0,88649.0,0.01128044]
[1766737249434,0.01127878,88662.0,88647.0,0.01128069]
[1766737249657,0.01127878,88662.0,88644.0,0.0564051]
[1766737249658,0.01127904,88660.0,88645.0,0.01128095]
[1766737249859,0.01127904,88660.0,88646.0,0.01128082]
[1766737250066,0.06767335,88662.0,88648.0,0.01128057]
[1766737250266,0.01127891,88661.0,88647.0,0.01128069]
[1766737251688,0.06767335,88662.0,88647.0,0.01128069]
[1766737251878,0.0680305,88665.0,88650.0,0.01128031]
[1766737252207,0.01127853,88664.0,88650.0,0.01128031]
[1766737252580,0.01127853,88664.0,88649.0,0.01128044]
[1766737253079,0.01127866,88663.0,88649.0,0.01128044]
[1766737253280,0.01127878,88662.0,88648.0,0.01128057]
[1766737253511,0.01127878,88662.0,88649.0,0.01128044]
[1766737253718,0.01127891,88661.0,88648.0,0.01128057]
[1766737253896,0.01127904,88660.0,88646.0,0.01128082]
[1766737254093,0.01127904,88660.0,88647.0,0.01128069]
[1766737254296,0.01127904,88660.0,88646.0,0.01128082]
[1766737254492,0.01127878,88662.0,88648.0,0.01128057]
[1766737255013,0.02259866,88663.0,88649.0,0.01128044]
[1766737255632,0.01127891,88661.0,88648.0,0.01128057]
[1766737255779,0.01127878,88662.0,88648.0,0.01128057]
[1766737255977,0.01127891,88661.0,88646.0,0.06768439]
[1766737256224,0.01127891,88661.0,88646.0,0.01128082]
[1766737256422,0.01127904,88660.0,88647.0,0.01128069]
[1766737256630,0.01127891,88661.0,88647.0,0.01128069]
[1766737256840,0.01127904,88660.0,88646.0,0.01128082]
[1766737257767,0.06767482,88660.0,88645.0,0.01128069]
[1766737257973,0.01127917,88659.0,88645.0,0.01128069]
[1766737258137,0.06767539,88659.0,88645.0,0.01128069]
[1766737258495,0.01127917,88659.0,88645.0,0.01128069]
[1766737258699,0.06771387,88663.0,88645.0,0.02256164]
[1766737258840,0.01127891,88661.0,88645.0,0.02256164]
[1766737259042,0.01127891,88661.0,88647.0,0.01128069]
[1766737259669,0.01127878,88662.0,88648.0,0.01128057]
[1766737259897,0.02259866,88663.0,88649.0,0.01128044]
[1766737260103,0.01132,88663.0,88652.0,0.01128006]
[1766737260778,0.01132,88663.0,88651.0,0.01128018]
[1766737260951,0.02259866,88663.0,88650.0,0.41481979]
[1766737261154,0.01132,88662.0,88650.0,0.40353948]
[1766737261352,0.01132,88662.0,88650.0,0.41481979]
[1766737261558,0.01132,88662.0,88651.0,0.01128018]
[1766737261772,0.01132,88662.0,88650.0,0.40353948]
[1766737262171,0.01132,88662.0,88650.0,0.41481979]
[1766737262390,0.02259878,88662.0,88650.0,0.40353948]
[1766737262769,0.01132,88662.0,88650.0,0.40353948]
[1766737263140,0.01132,88662.0,88650.0,0.41481979]
[1766737263340,0.01132,88662.0,88651.0,0.01128018]
[1766737263568,0.01132,88662.0,88650.0,0.40353948]
[1766737263768,0.01132,88662.0,88651.0,0.01128018]
[1766737264064,0.01132,88662.0,88650.0,0.01128031]
[1766737264284,0.07899309,88662.0,88644.0,0.01128107]
[1766737264491,0.01127929,88658.0,88644.0,0.01128107]
[1766737264878,0.01127942,88657.0,88642.0,0.01132]
[1766737265076,0.01127955,88656.0,88642.0,0.01132]
[1766737265252,0.01127967,88655.0,88644.0,0.01132]
[1766737265460,0.0676756,88659.0,88644.0,0.01132]
[1766737265622,0.01127917,88659.0,88644.0,0.01132]
[1766737266046,0.01127891,88661.0,88646.0,0.01128082]
[1766737266284,0.01127891,88661.0,88647.0,0.01128069]
[1766737267349,0.01127891,88661.0,88648.0,0.01128057]
[1766737267843,0.02259878,88662.0,88648.0,0.01128057]
[1766737268416,0.01127891,88661.0,88648.0,0.01128057]
[1766737269069,0.02259878,88662.0,88648.0,0.01128057]
[1766737269221,0.01127891,88661.0,88647.0,0.01128069]
[1766737269422,0.01127891,88661.0,88648.0,0.01128057]
[1766737269849,0.01132,88662.0,88649.0,0.01128044]
[1766737270343,0.01132,88662.0,88650.0,0.01128031]
[1766737270939,0.01127599,88684.0,88667.0,0.05639049]
[1766737271148,0.00010782,88669.0,88667.0,0.01127815]
[1766737271337,0.00010782,88669.0,88666.0,0.01127828]
[1766737271684,0.00010782,88669.0,88663.0,0.06767191]
[1766737271893,0.00010782,88669.0,88663.0,0.01127866]
[1766737272089,0.00010782,88669.0,88664.0,0.01127853]
[1766737272972,0.00010782,88669.0,88664.0,0.06767074]
[1766737273170,0.00010782,88669.0,88666.0,0.03382747]
[1766737273793,0.00010782,88669.0,88667.0,0.05639043]
[1766737274193,0.0002,88687.0,88677.0,0.01127688]
[1766737274393,0.01132,88686.0,88670.0,0.40341247]
[1766737274619,0.01127611,88683.0,88669.0,0.01127789]
[1766737274799,0.01127624,88682.0,88668.0,0.02259802]
[1766737274994,0.01127637,88681.0,88668.0,0.01132]
[1766737275365,0.01127611,88683.0,88668.0,0.02259802]
[1766737275493,0.01132,88684.0,88671.0,0.06766564]
[1766737275702,0.01132,88684.0,88678.0,0.01127675]
[1766737275910,0.01132,88684.0,88677.0,0.01127688]
[1766737276136,0.0002,88687.0,88684.0,0.01162499]
[1766737276354,0.07386,88692.0,88685.0,0.01127586]
[1766737276556,0.00010778,88692.0,88687.0,0.0112756]
[1766737276779,0.07386,88691.0,88684.0,0.000349]
[1766737276963,0.0851351,88691.0,88684.0,0.000349]
[1766737277140,0.07386,88691.0,88684.0,0.000349]
[1766737278203,0.07386,88691.0,88684.0,0.01162499]
[1766737279244,0.07386,88691.0,88684.0,0.000349]
[1766737280508,0.0851351,88691.0,88684.0,0.000149]
[1766737280932,0.07386,88691.0,88684.0,0.000149]
[1766737284230,0.07351,88691.0,88684.0,0.000149]
[1766737289151,0.08483,88691.0,88684.0,0.000149]
[1766737290309,0.0112756,88687.0,88684.0,0.000149]
[1766737291129,0.01127535,88689.0,88684.0,0.000149]
[1766737291334,0.01127548,88688.0,88684.0,0.000149]
[1766737291904,0.0112756,88687.0,88684.0,0.000149]
[1766737293930,0.01127548,88688.0,88684.0,0.000149]
[1766737294335,0.0112756,88687.0,88684.0,0.000149]
[1766737294973,0.01127535,88689.0,88684.0,0.000149]
[1766737295668,0.0112756,88687.0,88684.0,0.000149]
[1766737296096,0.01127548,88688.0,88684.0,0.000149]
[1766737297246,0.0112756,88687.0,88684.0,0.000149]
[1766737298325,0.07386,88690.0,88684.0,0.000149]
[1766737301333,0.08513522,88690.0,88684.0,0.000149]
[1766737301794,0.01127535,88689.0,88684.0,0.000149]
[1766737301979,0.01127548,88688.0,88684.0,0.000149]
[1766737302207,0.0112756,88687.0,88684.0,0.000149]
[1766737302570,0.0112756,88687.0,88680.0,0.0223233]
[1766737303471,0.01127548,88688.0,88680.0,0.0223233]
[1766737303812,0.08513522,88690.0,88680.0,0.0223233]
[1766737303987,0.08580573,88686.0,88680.0,0.0223233]
[1766737304353,0.07453,88686.0,88680.0,0.0223233]
[1766737304585,0.03953,88686.0,88680.0,0.0223233]
[1766737306800,0.03953,88686.0,88680.0,0.03359979]